bitfinex-derivatives/quotes_BTCF0:USTF0_20260207
["timestamp","ask_amount","ask_price","bid_price","bid_amount"]
[1770424382441,0.014285,70058.0,70030.0,0.57754933]
[1770424382641,0.014285,70058.0,70030.0,0.57254933]
[1770424382642,0.103585,70058.0,70030.0,0.57254933]
[1770424382844,0.014285,70056.0,70030.0,0.57254933]
[1770424383146,0.014282,70072.0,70048.0,0.57254933]
[1770424383339,0.15749058,70071.0,70039.0,0.57254933]
[1770424383540,0.014284,70061.0,70042.0,0.014288]
[1770424383844,0.224284,70061.0,70042.0,0.014288]
[1770424384040,0.224284,70061.0,70020.0,0.014292]
[1770424384041,0.15749058,70060.0,70035.0,0.57254933]
[1770424384242,0.24,70060.0,70047.0,0.014287]
[1770424384447,0.2,70060.0,70045.0,0.57254933]
[1770424384959,0.15749058,70087.0,70060.0,0.014284]
[1770424385250,0.014279,70083.0,70065.0,0.014283]
[1770424385447,0.01,70083.0,70065.0,0.57254933]
[1770424385649,0.014278,70090.0,70068.0,0.014282]
[1770424385843,0.01,70090.0,70071.0,0.014282]
[1770424386038,0.001,70087.0,70070.0,0.014282]
[1770424386246,0.014279,70086.0,70067.0,0.014283]
[1770424386442,0.18,70086.0,70069.0,0.57336808]
[1770424386641,0.3478634,70106.0,70078.0,0.01428]
[1770424386841,0.014275,70105.0,70077.0,0.57336808]
[1770424387038,0.53074275,70127.0,70088.0,0.57336808]
[1770424387239,0.07,70127.0,70101.0,0.57336808]
[1770424387438,0.005,70136.0,70121.0,0.014272]
[1770424387648,0.53074275,70158.0,70123.0,0.58763908]
[1770424387841,0.53074275,70158.0,70137.0,0.014268]
[1770424387842,0.06,70158.0,70137.0,0.014268]
[1770424388052,0.0002,70181.0,70157.0,0.5742835]
[1770424388245,0.01426,70182.0,70151.0,0.014266]
[1770424388545,0.01426,70181.0,70150.0,0.5742835]
[1770424388746,0.014257,70196.0,70169.0,0.5742835]
[1770424388940,0.53202198,70217.0,70180.0,0.5742835]
[1770424389140,0.014258,70188.0,70169.0,0.5742835]
[1770424389344,0.014258,70188.0,70156.0,0.5742835]
[1770424389345,0.55202198,70188.0,70156.0,0.5742835]
[1770424389845,0.01426,70180.0,70158.0,0.5742835]
[1770424390243,0.01426,70180.0,70128.0,0.071353]
[1770424390244,0.14284446,70170.0,70145.0,0.5742835]
[1770424390540,0.21284446,70170.0,70145.0,0.5742835]
[1770424390745,0.14284446,70170.0,70145.0,0.5742835]
[1770424390946,0.21284446,70170.0,70145.0,0.5742835]
[1770424391244,0.21284446,70170.0,70124.0,0.92396]
[1770424391245,0.53202198,70168.0,70133.0,0.5742835]
[1770424391450,0.014263,70165.0,70133.0,0.5885525]
[1770424391646,0.214263,70165.0,70134.0,0.014269]
[1770424391849,0.53202198,70149.0,70120.0,0.00012507]
[1770424392145,0.014269,70135.0,70110.0,0.5742835]
[1770424392346,0.27,70135.0,70099.0,0.5742835]
[1770424392542,0.014271,70127.0,70099.0,0.5742835]
[1770424392745,0.214271,70127.0,70099.0,0.5742835]
[1770424393053,0.2,70127.0,70099.0,0.5742835]
[1770424393346,0.53202198,70104.0,70061.0,0.014284]
[1770424393552,0.54629898,70093.0,70061.0,0.014284]
[1770424393738,0.54629898,70093.0,70048.0,0.014287]
[1770424393739,0.01428,70081.0,70048.0,0.014287]
[1770424393945,0.15711846,70110.0,70075.0,0.014281]
[1770424394145,0.15711846,70110.0,70043.0,0.014287]
[1770424394146,0.53202198,70101.0,70061.0,0.5742835]
[1770424394340,0.77202198,70101.0,70065.0,0.014283]
[1770424394652,0.77202198,70101.0,70061.0,0.5742835]
[1770424394653,0.014278,70093.0,70062.0,0.014284]
[1770424394945,0.014278,70089.0,70061.0,0.5742835]
[1770424395149,0.19,70089.0,70064.0,0.014283]
[1770424395354,0.014278,70088.0,70060.0,0.5742835]
[1770424395552,0.214278,70088.0,70060.0,0.5742835]
[1770424395946,0.2,70088.0,70061.0,0.014284]
[1770424396149,0.2,70088.0,70065.0,0.014283]
[1770424396352,0.17,70088.0,70065.0,0.5885665]
[1770424396548,0.17,70088.0,70051.0,0.5742835]
[1770424396752,0.014279,70086.0,70055.0,0.014285]
[1770424396953,0.014279,70086.0,70029.0,0.01429]
[1770424396954,0.19,70086.0,70062.0,0.5742835]
[1770424397345,0.014279,70085.0,70039.0,0.5742835]
[1770424397546,0.16,70085.0,70065.0,0.014283]
[1770424397746,0.16,70085.0,70051.0,0.5742835]
[1770424397950,0.014279,70084.0,70054.0,0.014285]
[1770424398153,0.184279,70084.0,70062.0,0.001]
[1770424398559,0.224279,70084.0,70062.0,0.001]
[1770424398747,0.224279,70084.0,70058.0,0.014284]
[1770424398748,0.184279,70084.0,70058.0,0.014284]
[1770424399149,0.17,70084.0,70058.0,0.014284]
[1770424399350,0.17,70084.0,70062.0,0.014284]
[1770424399552,0.17,70084.0,70051.0,0.5752835]
[1770424399553,0.2,70084.0,70051.0,0.5752835]
[1770424399853,0.01428,70082.0,70056.0,0.014285]
[1770424400054,0.18428,70082.0,70056.0,0.014285]
[1770424400258,0.19428,70082.0,70056.0,0.014285]
[1770424400458,0.18428,70082.0,70056.0,0.014285]
[1770424401351,0.18428,70082.0,70066.0,0.21295797]
[1770424401553,0.21428,70082.0,70065.0,0.21295797]
[1770424401750,0.01428,70079.0,70065.0,0.21295797]
[1770424401952,0.72630198,70079.0,70061.0,0.21295797]
[1770424402160,0.75630198,70079.0,70061.0,0.21295797]
[1770424402350,0.75630198,70079.0,70062.0,0.21295797]
[1770424403055,0.75630198,70079.0,70061.0,0.21295797]
[1770424403660,0.75630198,70079.0,69931.0,0.07131]
[1770424403661,0.22781594,70066.0,70048.0,0.35262863]
[1770424403846,0.22781594,70066.0,70009.0,0.071675]
[1770424403847,0.22781594,70056.0,70026.0,0.014291]
[1770424404048,0.22781594,70051.0,70020.0,0.57441887]
[1770424404358,0.014286,70050.0,70020.0,0.58871087]
[1770424404557,0.224286,70050.0,70020.0,0.58871087]
[1770424405158,0.224286,70050.0,69998.0,0.42599775]
[1770424405159,0.014292,70023.0,69998.0,0.42599775]
[1770424405453,0.014292,70023.0,69995.0,0.5744835]
[1770424405454,0.25574866,70022.0,69995.0,0.0002]
[1770424405654,0.42524866,70022.0,69988.0,0.5742835]
[1770424405860,0.42524866,70022.0,69997.0,0.014297]
[1770424406056,0.42524866,70022.0,69974.0,0.42599775]
[1770424406057,0.071494,69990.0,69922.0,0.58045898]
[1770424406264,0.071494,69990.0,69825.0,0.071663]
[1770424406265,0.0715,69984.0,69924.0,0.58333333]
[1770424406451,0.27,69984.0,69946.0,0.58333333]
[1770424406649,0.01,69998.0,69961.0,0.5742835]
[1770424406849,0.01,69998.0,69952.0,0.071532]
[1770424406850,0.01,70012.0,69979.0,0.5742835]
[1770424407151,0.014291,70028.0,69991.0,0.5742835]
[1770424407351,0.14284446,70070.0,69966.0,0.071518]
[1770424407352,0.014289,70036.0,70002.0,0.5742835]
[1770424407562,0.00012973,70035.0,70002.0,0.5628435]
[1770424407758,0.00012973,70035.0,70010.0,0.5742835]
[1770424407959,0.014288,70043.0,70022.0,0.03754033]
[1770424408157,0.02,70043.0,70022.0,0.03754033]
[1770424408358,0.014285,70056.0,70029.0,0.5742835]
[1770424408554,0.014286,70051.0,70030.0,1.86896022]
[1770424408755,0.014287,70046.0,70030.0,1.86896022]
[1770424409353,0.28250787,70064.0,70030.0,1.86896022]
[1770424409553,0.28250787,70077.0,70034.0,0.014289]
[1770424409767,0.28250787,70076.0,70034.0,0.5742835]
[1770424409976,0.56250787,70076.0,70034.0,0.5742835]
[1770424410365,0.28250787,70075.0,70034.0,0.5742835]
[1770424410563,0.25,70075.0,70036.0,0.5742835]
[1770424410874,0.02,70075.0,70052.0,0.5742835]
[1770424411171,0.02,70075.0,70056.0,0.5885685]
[1770424411363,0.28250787,70099.0,70065.0,0.5742835]
[1770424411569,0.08,70099.0,70070.0,0.5742835]
[1770424411765,0.08,70099.0,70071.0,0.5742835]
[1770424411965,0.014273,70116.0,70078.0,0.5742835]
[1770424412167,0.07,70116.0,70085.0,0.014279]
[1770424412373,0.07,70116.0,70087.0,0.5742835]
[1770424412374,0.25,70116.0,70087.0,0.5742835]
[1770424412573,0.264273,70116.0,70087.0,0.5742835]
[1770424412775,0.25,70116.0,70089.0,0.5742835]
[1770424413576,0.25,70116.0,70092.0,0.014277]
[1770424413776,0.18,70116.0,70092.0,0.5885605]
[1770424414074,0.18,70116.0,70094.0,0.5742835]
[1770424414273,0.21,70116.0,70094.0,0.5742835]
[1770424414473,0.21,70116.0,70054.0,0.250985]
[1770424414474,0.014273,70114.0,70095.0,1.86896022]
[1770424414676,0.22,70114.0,70083.0,0.5885625]
[1770424414875,0.071346,70136.0,70077.0,0.924]
[1770424414876,0.53202198,70149.0,70105.0,0.5742835]
[1770424415080,0.014268,70142.0,70106.0,0.5885585]
[1770424415379,0.06,70142.0,70116.0,0.5885565]
[1770424415571,0.06,70142.0,70116.0,0.5742835]
[1770424415882,0.06,70142.0,70118.0,0.54431421]
[1770424416375,0.06,70142.0,70119.0,1.86896022]
[1770424416570,0.1,70157.0,70134.0,0.014269]
[1770424416765,0.047,70157.0,70139.0,0.014268]
[1770424416969,0.0002,70165.0,70140.0,2.41327443]
[1770424417167,0.0602,70165.0,70143.0,0.54431421]
[1770424417371,0.0002,70165.0,70146.0,0.54431421]
[1770424417568,0.0002,70182.0,70148.0,0.55858021]
[1770424417782,0.5459471,70169.0,70122.0,0.54431421]
[1770424417973,0.6159471,70169.0,70122.0,0.54431421]
[1770424418276,0.14293945,70150.0,70110.0,0.54431421]
[1770424418579,0.01427,70130.0,70093.0,0.54431421]
[1770424418773,0.11,70130.0,70093.0,0.54431421]
[1770424418979,0.05,70130.0,70095.0,0.54431421]
[1770424419174,0.21,70130.0,70095.0,0.54431421]
[1770424419375,0.05,70145.0,70097.0,0.54431421]
[1770424419680,0.24,70145.0,70097.0,0.54431421]
[1770424419871,0.014269,70136.0,70101.0,0.54431421]
[1770424420071,0.14437315,70135.0,70089.0,1.86896022]
[1770424420271,0.14437315,70125.0,70087.0,0.54431421]
[1770424420469,0.014271,70124.0,70089.0,1.86896022]
[1770424420782,0.254271,70124.0,70089.0,1.86896022]
[1770424421477,0.014272,70120.0,70089.0,1.86896022]
[1770424421683,0.264272,70120.0,70089.0,1.86896022]
[1770424422070,0.264272,70120.0,70066.0,0.071416]
[1770424422071,0.014274,70112.0,70074.0,0.55859521]
[1770424422275,0.014275,70104.0,70061.0,0.54431421]
[1770424422483,0.244275,70104.0,70069.0,0.014282]
[1770424422676,0.014276,70099.0,70067.0,0.014283]
[1770424422874,0.04,70099.0,70067.0,0.014283]
[1770424423081,0.03,70099.0,70063.0,0.54431421]
[1770424423284,0.014277,70098.0,70064.0,1.84391828]
[1770424423479,0.45195758,70098.0,70064.0,1.84391828]
[1770424424483,0.014277,70094.0,70064.0,1.84391828]
[1770424424686,0.294277,70094.0,70064.0,1.84391828]
[1770424424890,0.18755301,70093.0,70064.0,1.84391828]
[1770424425183,0.071394,70089.0,70037.0,0.54431421]
[1770424425384,0.014279,70084.0,70045.0,0.58333333]
[1770424425588,0.264279,70084.0,70049.0,0.58333333]
[1770424425886,0.264279,70084.0,70055.0,0.59761833]
[1770424425887,0.25,70084.0,70055.0,0.59761833]
[1770424426083,0.25,70084.0,70055.0,0.58333333]
[1770424426288,0.014282,70069.0,70056.0,0.71709727]
[1770424426584,0.17,70069.0,70043.0,0.58333333]
[1770424426790,0.2,70069.0,70044.0,0.73138427]
[1770424427089,0.2001581,70069.0,70044.0,0.71709727]
[1770424427291,0.014284,70062.0,70031.0,0.58328063]
[1770424427486,0.254284,70062.0,70032.0,0.71709727]
[1770424427788,0.24,70062.0,70033.0,0.01429]
[1770424428087,0.254284,70062.0,70033.0,0.01429]
[1770424428391,0.0003581,70093.0,70049.0,0.58328063]
[1770424428582,0.0703581,70093.0,70051.0,0.54431421]
[1770424428784,0.014279,70085.0,70051.0,0.55860021]
[1770424428984,0.074279,70085.0,70051.0,0.55860021]
[1770424429186,0.014281,70077.0,70051.0,0.54431421]
[1770424429386,0.014282,70073.0,70052.0,0.71709727]
[1770424429589,0.274282,70073.0,70041.0,0.014288]
[1770424429782,0.224282,70073.0,70042.0,0.71709727]
[1770424430085,0.014283,70064.0,70042.0,0.71709727]
[1770424430390,0.014284,70060.0,70042.0,0.71709727]
[1770424430586,0.05,70060.0,70042.0,0.71709727]
[1770424430786,0.2,70060.0,70042.0,0.71709727]
[1770424431290,0.014284,70059.0,70043.0,0.71709727]
[1770424431486,0.01428,70079.0,70050.0,0.014286]
[1770424431684,0.02,70079.0,70054.0,0.014285]
[1770424431880,0.02,70079.0,70055.0,0.71709727]
[1770424432079,0.02,70079.0,70055.0,0.014285]
[1770424432282,0.02,70079.0,70057.0,0.014285]
[1770424432481,0.02,70079.0,70061.0,0.014284]
[1770424432690,0.14293945,70100.0,70038.0,0.014289]
[1770424432691,0.18103656,70108.0,70065.0,0.55859721]
[1770424432887,0.17230949,70107.0,70065.0,0.54431421]
[1770424433193,0.014278,70091.0,70066.0,0.71709727]
[1770424433491,0.12,70091.0,70067.0,0.014283]
[1770424433790,0.134278,70091.0,70066.0,0.71709727]
[1770424433996,0.014279,70088.0,70066.0,0.71709727]
[1770424434180,0.18,70088.0,70066.0,0.71709727]
[1770424434378,0.194279,70088.0,70066.0,0.71709727]
[1770424434583,0.18,70088.0,70066.0,0.71709727]
[1770424434790,0.18,70088.0,70067.0,0.014283]
[1770424434990,0.18,70088.0,70070.0,0.014282]
[1770424435193,0.18,70088.0,70066.0,0.71709727]
[1770424435492,0.01428,70082.0,70054.0,0.014285]
[1770424435794,0.18,70082.0,70056.0,0.54431421]
[1770424436092,0.014282,70073.0,70045.0,0.014287]
[1770424436289,0.014282,70073.0,70034.0,0.54431421]
[1770424436290,0.114282,70073.0,70046.0,0.014287]
[1770424436487,0.014282,70070.0,70035.0,0.71709727]
[1770424436692,0.104282,70070.0,70044.0,0.014287]
[1770424437291,0.01428,70080.0,70056.0,0.014285]
[1770424437590,0.014281,70077.0,70046.0,0.54431421]
[1770424437796,0.194281,70077.0,70051.0,0.014286]
[1770424438291,0.18,70077.0,70051.0,0.014286]
[1770424438491,0.18,70077.0,70054.0,0.014285]
[1770424438687,0.18,70077.0,70048.0,0.54431421]
[1770424438890,0.14694914,70076.0,70036.0,0.54431421]
[1770424439092,0.014284,70061.0,70037.0,0.71709727]
[1770424439396,0.014285,70055.0,70037.0,0.71709727]
[1770424439590,0.06,70055.0,70037.0,0.71709727]
[1770424439996,0.03,70055.0,70037.0,0.71709727]
[1770424440190,0.14684356,70084.0,70038.0,0.54431421]
[1770424440397,0.41684356,70084.0,70052.0,0.54431421]
[1770424440598,0.014282,70073.0,70052.0,0.54431421]
[1770424440797,0.19,70073.0,70054.0,0.54431421]
[1770424440999,0.17684356,70096.0,70065.0,0.014283]
[1770424441200,0.17684356,70096.0,70045.0,0.014287]
[1770424441201,0.014278,70090.0,70060.0,0.54431421]
[1770424441494,0.19364824,70089.0,70054.0,0.014285]
[1770424441698,0.27364824,70089.0,70055.0,0.71709727]
[1770424441890,0.014281,70077.0,70055.0,0.71709727]
[1770424442092,0.044281,70077.0,70055.0,0.71709727]
[1770424442292,0.054281,70077.0,70055.0,0.71709727]
[1770424442590,0.01,70077.0,70056.0,0.014285]
[1770424442793,0.01,70077.0,70056.0,0.54431421]
[1770424442993,0.01,70077.0,70055.0,0.71709727]
[1770424443294,0.03,70077.0,70055.0,0.71709727]
[1770424443600,0.19,70077.0,70056.0,0.014285]
[1770424444299,0.22,70077.0,70056.0,0.014285]
[1770424445098,0.19,70077.0,70059.0,0.014284]
[1770424445300,0.22,70077.0,70059.0,0.014284]
[1770424445493,0.22,70077.0,70061.0,0.014284]
[1770424445494,0.21,70077.0,70061.0,0.014284]
[1770424445695,0.014278,70089.0,70066.0,0.014283]
[1770424445898,0.014279,70087.0,70061.0,0.56066986]
[1770424446197,0.014279,70085.0,70063.0,0.014284]
[1770424446398,0.074279,70085.0,70063.0,0.014284]
[1770424446991,0.244279,70085.0,70063.0,0.014284]
[1770424447191,0.23,70085.0,70066.0,0.014283]
[1770424447387,0.23,70085.0,70063.0,0.014284]
[1770424447600,0.014279,70084.0,70063.0,0.014284]
[1770424447902,0.224279,70084.0,70063.0,0.014284]
[1770424448898,0.21,70084.0,70066.0,0.53906084]
[1770424449099,0.19,70084.0,70066.0,0.53906084]
[1770424449293,0.19,70084.0,70053.0,0.014285]
[1770424449294,0.01428,70081.0,70067.0,0.71709727]
[1770424449500,0.19,70081.0,70061.0,0.014284]
[1770424449701,0.22,70081.0,70061.0,0.014284]
[1770424449893,0.22,70081.0,70063.0,0.014283]
[1770424450204,0.22,70081.0,70060.0,0.014284]
[1770424450605,0.22,70081.0,70062.0,0.014284]
[1770424451494,0.19,70081.0,70064.0,0.53906084]
[1770424451805,0.01,70081.0,70068.0,0.014282]
[1770424452202,0.01,70081.0,70072.0,0.014282]
[1770424452505,0.01,70081.0,70069.0,0.73137927]
[1770424453003,0.014277,70098.0,70078.0,0.01428]
[1770424453198,0.62728132,70098.0,70069.0,0.71709727]
[1770424453403,0.1,70113.0,70069.0,0.71709727]
[1770424453404,0.1,70113.0,70093.0,0.014277]
[1770424453600,0.014274,70112.0,70089.0,0.014278]
[1770424453794,0.014274,70112.0,70086.0,0.53906084]
[1770424453795,0.064274,70112.0,70092.0,0.014278]
[1770424454002,0.05,70112.0,70093.0,0.71709727]
[1770424454304,0.23,70112.0,70093.0,0.71709727]
[1770424454608,0.244274,70112.0,70093.0,0.71709727]
[1770424454907,0.23,70112.0,70093.0,0.71709727]
[1770424455095,0.23,70112.0,70094.0,0.014277]
[1770424455304,0.18,70112.0,70094.0,0.55333784]
[1770424455597,0.18,70112.0,70095.0,0.014277]
[1770424455804,0.18,70112.0,70097.0,0.014276]
[1770424456101,0.18,70112.0,70094.0,0.53906084]
[1770424456294,0.56728132,70111.0,70093.0,0.71709727]
[1770424456500,0.014279,70085.0,70064.0,0.014283]
[1770424456801,0.07,70085.0,70064.0,0.014283]
[1770424456998,0.15706161,70120.0,70060.0,0.53906084]
[1770424457201,0.15706161,70120.0,70046.0,0.35569444]
[1770424457202,0.014276,70101.0,70079.0,0.01428]
[1770424457407,0.284276,70101.0,70069.0,0.53906084]
[1770424457603,0.56728132,70100.0,70063.0,0.014284]
[1770424457798,0.014278,70091.0,70057.0,0.53906084]
[1770424457997,0.244278,70091.0,70058.0,0.53906084]
[1770424458200,0.014278,70089.0,70067.0,0.014283]
[1770424458402,0.224278,70089.0,70069.0,0.014282]
[1770424458596,0.014279,70086.0,70059.0,0.53906084]
[1770424458805,0.23,70086.0,70059.0,0.53906084]
[1770424459009,0.23,70086.0,70068.0,0.014282]
[1770424459308,0.23,70086.0,70070.0,0.014282]
[1770424459309,0.22,70086.0,70070.0,0.014282]
[1770424460301,0.204279,70086.0,70065.0,0.014283]
[1770424460507,0.234279,70086.0,70067.0,0.014283]
[1770424460706,0.22,70086.0,70067.0,0.014283]
[1770424461511,0.22,70086.0,70060.0,0.53906084]
[1770424461705,0.22,70086.0,70063.0,0.53906084]
[1770424462904,0.22,70086.0,70063.0,0.82361639]
[1770424463104,0.22,70086.0,70072.0,0.014282]
[1770424464711,0.014277,70096.0,70079.0,0.01428]
[1770424464915,0.014279,70088.0,70068.0,0.29883755]
[1770424465111,0.014279,70088.0,70054.0,0.014285]
[1770424465112,0.08,70088.0,70070.0,0.014282]
[1770424465410,0.014279,70087.0,70068.0,0.29883755]
[1770424465613,0.104279,70087.0,70068.0,0.29883755]
[1770424466304,0.25,70087.0,70069.0,0.28455555]
[1770424466510,0.25,70087.0,70069.0,0.014282]
[1770424466706,0.25,70087.0,70071.0,0.014282]
[1770424466915,0.25,70087.0,70070.0,0.014282]
[1770424468006,0.25,70087.0,70069.0,0.28455555]
[1770424469214,0.25,70087.0,70069.0,0.29883755]
[1770424469514,0.25,70087.0,70071.0,0.29883755]
[1770424469711,0.25,70087.0,70074.0,0.014281]
[1770424470112,0.25,70087.0,70073.0,0.014281]
[1770424470413,0.25,70087.0,70081.0,0.01408823]
[1770424470414,0.04,70087.0,70081.0,0.01408823]
[1770424470612,0.014276,70100.0,70081.0,0.01408823]
[1770424470813,0.084276,70100.0,70081.0,0.01408823]
[1770424471113,0.07,70100.0,70086.0,0.014279]
[1770424471307,0.07,70100.0,70085.0,0.28455555]
[1770424471507,0.0002,70130.0,70092.0,0.53906084]
[1770424471508,0.56728132,70124.0,70092.0,0.53906084]
[1770424471710,0.24,70124.0,70115.0,0.014273]
[1770424472010,0.24,70124.0,70109.0,0.35569444]
[1770424472011,0.23980823,70124.0,70109.0,0.35569444]
[1770424472208,0.23980823,70124.0,70110.0,0.014274]
[1770424472513,0.80708955,70124.0,70102.0,0.35569444]
[1770424472811,0.014272,70118.0,70098.0,0.014276]
[1770424473019,0.26980823,70118.0,70098.0,0.014276]
[1770424473410,0.014273,70115.0,70094.0,0.014277]
[1770424473610,0.56728132,70112.0,70084.0,0.35569444]
[1770424473805,0.80708955,70112.0,70083.0,0.89475528]
[1770424474110,0.56728132,70108.0,70084.0,0.35569444]
[1770424474312,0.014275,70105.0,70084.0,0.014279]
[1770424474610,0.25408323,70105.0,70084.0,0.014279]
[1770424474914,0.23980823,70105.0,70086.0,0.014279]
[1770424475210,0.23980823,70105.0,70103.0,7.3e-07]
[1770424475520,0.25408323,70105.0,70088.0,0.35569444]
[1770424475709,0.23980823,70105.0,70088.0,0.35569444]
[1770424476111,0.23980823,70105.0,70089.0,0.014278]
[1770424477111,0.23980823,70105.0,70092.0,0.014278]
[1770424478914,0.014278,70090.0,70072.0,0.56132634]
[1770424479103,0.26408623,70090.0,70069.0,0.014282]
[1770424479309,0.26408623,70090.0,70068.0,0.014282]
[1770424480017,0.014278,70089.0,70067.0,0.014283]
[1770424480315,0.26408623,70089.0,70069.0,0.014282]
[1770424480914,0.26408623,70089.0,70066.0,0.014283]
[1770424481217,0.55432641,70083.0,70059.0,0.014284]
[1770424481405,0.55432641,70083.0,70048.0,0.56805378]
[1770424481406,0.014281,70078.0,70055.0,0.014285]
[1770424481609,0.24980823,70078.0,70057.0,0.014285]
[1770424481813,0.26408923,70078.0,70055.0,0.014285]
[1770424482115,0.014281,70077.0,70065.0,0.28453528]
[1770424482416,0.28348923,70077.0,70066.0,0.28453528]
[1770424482714,0.014282,70072.0,70051.0,0.014286]
[1770424482912,0.014283,70067.0,70045.0,0.01446791]
[1770424483118,0.014283,70067.0,70045.0,0.014287]
[1770424483616,0.23920823,70067.0,70045.0,0.014287]
[1770424483818,0.23920823,70067.0,70038.0,0.56805378]
[1770424484015,0.23920823,70067.0,70046.0,0.014287]
[1770424484520,0.25349123,70067.0,70046.0,0.014287]
[1770424485412,0.23920823,70067.0,70040.0,0.56805378]
[1770424485610,0.23920823,70067.0,70047.0,0.014287]
[1770424485810,0.014283,70066.0,70044.0,0.014287]
[1770424486012,0.27920823,70066.0,70040.0,0.56805378]
[1770424486316,0.27920823,70066.0,70045.0,0.014287]
[1770424487716,0.27920823,70066.0,70048.0,0.014287]
[1770424487920,0.27920823,70066.0,70054.0,0.014285]
[1770424488216,0.27920823,70066.0,70051.0,0.014286]
[1770424489313,0.27920823,70066.0,70053.0,0.014285]
[1770424489513,0.27920823,70066.0,70054.0,0.014285]
[1770424489719,0.01,70081.0,70051.0,0.56805378]
[1770424489914,0.04,70081.0,70063.0,0.58233678]
[1770424491323,0.23,70081.0,70063.0,0.58233678]
[1770424492822,0.23,70081.0,70070.0,0.85201377]
[1770424492823,0.01,70081.0,70070.0,0.85201377]
[1770424493025,0.55432641,70097.0,70074.0,0.014281]
[1770424493211,0.63432641,70097.0,70074.0,0.014281]
[1770424493416,0.63432641,70097.0,70078.0,0.01428]
[1770424493615,0.08,70097.0,70078.0,0.01428]
[1770424493921,0.26,70097.0,70085.0,0.014279]
[1770424494111,0.01,70097.0,70087.0,0.014279]
[1770424494315,0.01,70097.0,70086.0,0.56805378]
[1770424494518,0.01,70097.0,70085.0,0.014279]
[1770424495017,0.02,70097.0,70085.0,0.29823899]
[1770424495322,0.02,70097.0,70085.0,0.014279]
[1770424495521,0.02,70097.0,70087.0,0.21283827]
[1770424495924,0.02,70097.0,70090.0,0.21283827]
[1770424496113,0.02,70097.0,70089.0,0.21283827]
[1770424496312,0.21,70097.0,70090.0,0.21283827]
[1770424497124,0.55432641,70096.0,70074.0,0.63894389]
[1770424497326,0.55432641,70096.0,70072.0,0.46403916]
[1770424497327,0.55432641,70092.0,70072.0,0.46403916]
[1770424497625,0.55432641,70085.0,70062.0,0.014284]
[1770424497926,0.014279,70084.0,70058.0,0.47832316]
[1770424498123,0.244279,70084.0,70061.0,0.014284]
[1770424498521,0.23,70084.0,70063.0,0.014284]
[1770424499020,0.23,70084.0,70064.0,0.46403916]
[1770424499916,0.1,70099.0,70065.0,0.56805378]
[1770424500116,0.62432641,70099.0,70065.0,0.56805378]
[1770424500422,0.55432641,70087.0,70049.0,0.014286]
[1770424500622,0.014281,70074.0,70052.0,0.014286]
[1770424500823,0.124281,70074.0,70052.0,0.014286]
[1770424501025,0.124281,70074.0,70053.0,0.44089332]
[1770424501233,0.66432641,70074.0,70053.0,0.44089332]
[1770424501528,0.55432641,70070.0,70053.0,0.23403893]
[1770424501719,0.014284,70064.0,70053.0,0.23403893]
[1770424501915,0.244284,70064.0,70042.0,0.014288]
[1770424502215,0.244284,70064.0,70034.0,0.56805378]
[1770424502216,0.55432641,70063.0,70035.0,0.23403893]
[1770424502424,0.014287,70044.0,70024.0,0.56805378]
[1770424502630,0.25,70044.0,70025.0,0.014291]
[1770424502927,0.014291,70027.0,70003.0,0.56805378]
[1770424503124,0.274291,70027.0,70003.0,0.56805378]
[1770424503318,0.274291,70027.0,70004.0,0.014296]
[1770424503516,0.55432641,70019.0,69979.0,0.56805378]
[1770424503727,0.55432641,70016.0,69979.0,0.56805378]
[1770424503917,0.19,70016.0,69997.0,0.014297]
[1770424504120,0.19,70016.0,69991.0,0.56805378]
[1770424504322,0.55432641,70039.0,70002.0,0.56805378]
[1770424504622,0.55432641,70039.0,69986.0,0.014299]
[1770424504623,0.14275273,70020.0,69986.0,0.56805378]
[1770424504929,0.55432641,70019.0,69996.0,0.014297]
[1770424505129,0.78432641,70019.0,69990.0,0.56805378]
[1770424505321,0.78432641,70019.0,69994.0,0.014297]
[1770424505720,0.23,70019.0,70001.0,0.014296]
[1770424505919,0.014293,70016.0,69990.0,0.56805378]
[1770424506238,0.22848473,70040.0,69934.0,0.5699509]
[1770424506239,0.24305773,69977.0,69934.0,0.5699509]
[1770424506529,0.26235873,69976.0,69943.0,0.5699509]
[1770424506730,0.09,69976.0,69934.0,0.5699509]
[1770424506928,0.014302,69973.0,69942.0,0.014308]
[1770424507125,0.014302,69973.0,69941.0,0.5699509]
[1770424507126,0.07,69973.0,69943.0,0.5699509]
[1770424507621,0.07,69973.0,69947.0,0.014307]
[1770424507832,0.07,69973.0,69947.0,0.5842579]
[1770424508219,0.26,69973.0,69947.0,0.5842579]
[1770424508424,0.014302,69972.0,69942.0,0.014308]
[1770424508723,0.28,69972.0,69948.0,0.57093091]
[1770424509529,0.28,69972.0,69950.0,0.014307]
[1770424510025,0.28,69972.0,69948.0,0.57093091]
[1770424510229,0.0143,69985.0,69958.0,0.57093091]
[1770424510424,0.0243,69985.0,69958.0,0.57093091]
[1770424510625,0.01,69985.0,69966.0,0.58523391]
[1770424510829,0.01,69999.0,69966.0,0.58523391]
[1770424511024,0.01,69999.0,69944.0,0.6212]
[1770424511025,0.014301,69979.0,69944.0,0.57093091]
[1770424511233,0.11,69993.0,69962.0,0.57093091]
[1770424511529,0.14275273,69980.0,69953.0,0.014306]
[1770424511832,0.25,69980.0,69961.0,0.014304]
[1770424513132,0.14275273,70000.0,69976.0,0.014301]
[1770424513435,0.08,70000.0,69976.0,0.57093091]
[1770424513638,0.08,70000.0,69984.0,0.0143]
[1770424513828,0.014294,70012.0,69988.0,0.014299]
[1770424514033,0.084294,70012.0,69988.0,0.014299]
[1770424514428,0.254294,70012.0,69984.0,0.57093091]
[1770424514732,0.24,70012.0,69986.0,0.57093091]
[1770424514934,0.24,70012.0,69992.0,0.014298]
[1770424515331,0.24,70012.0,69995.0,0.014297]